{"text_format":"3","workbook":"xlsx","n_sheets":2,"sheets":["Bid Form","Unit Price List"],"read":"whole","date_system":"1900"}

{"sheet":"Bid Form","index":0,"n_rows":34,"n_cols":11,"rows_kept":34,"merged":[[0,5,6,6],[1,0,1,4],[2,0,2,4],[2,7,2,10],[3,0,3,4],[3,7,5,10],[4,0,4,4],[5,0,5,4],[6,0,6,4],[6,7,6,10],[7,0,7,10],[8,0,8,10],[9,0,9,3],[9,5,9,10],[10,0,10,10],[11,0,11,3],[11,4,12,10],[12,0,12,3],[13,0,13,10],[14,0,14,10],[15,0,15,10],[16,0,16,4],[16,5,16,7],[17,0,17,2],[17,4,17,7],[17,9,17,10],[18,0,18,1],[18,2,18,7],[19,1,19,7],[20,0,20,1],[20,2,20,7],[20,9,20,10],[21,1,21,4],[21,7,21,10],[22,1,22,4],[22,7,22,10],[23,0,24,4],[23,6,24,10],[25,0,25,4],[25,6,25,10],[26,0,26,5],[26,6,26,10],[27,0,28,10],[29,0,29,10],[30,0,30,10],[33,5,33,8]]}
["SOLICITATION, OFFER, AND BID FORM",{"$nulls":9},"ESCAMBIA COUNTY, FLORIDA"]
["Submit offers to:"]
["Jeff Lovingood, 850-595-4953",{"$nulls":6},"Invitation to Bid"]
["Purchasing Specialist",{"$nulls":6},"MUSCOGEE ROAD PHASE 4B WIDENING & DRAINAGE IMPROVEMENTS"]
["Office of Purchasing, 2nd Floor, Room 11.101"]
["213 Palafox Place, Pensacola, FL  32502"]
["or P.O. Box 1591, Pensacola, FL 32591-1591",{"$nulls":6},"Solicitation Number PD 18-19.005"]
["SOLICITATION"]
["Mailing Date:  October 29, 2018"]
["Pre-Solicitation Conference: A",{"$nulls":3},"Non-Mandatory","Pre-Solicitation Conference will be held in the Office of "]
["Purchasing Conference Room, 11.407, at 213 Palafox Pl. Pensacola, FL 32502 at 11:00 AM CST on November 13, 2018"]
["Offers Will Be Received Until:",{"$nulls":3},"2:00 PM CST on December 05, 2018, and may not be withdrawn within 90 days after such date and time."]
[]
["POSTING OF SOLICITATION TABULATIONS"]
["Solicitation tabulations with Recommended Awards will be posted for review by interested parties at the Escambia County Office of Purchasing, and will remain posted for a period of two (2) business days.  Failure to file a protest in writing within two (2) business days after posting of the soliciation tabulation shall constitute a waiver of any protest relating to this soliciation.  All protests must be filed with the Escambia County Office of Purchasing.  Protests will be handled according to Escambia County Purchasing Ordinance."]
["OFFER (shall be completed by Offeror)"]
["Federal Employer ID Number or S.S. Number:",{"$nulls":9},"Terms of Payment"]
["Delivery Date will be ",{"$nulls":3},"days after receipt of Purchase Order"]
["Vendor Name:"]
["Address:",{"$nulls":9},"Bid Bond Attached"]
["City, State, Zip:",{"$nulls":7},"$"]
["Phone:",{"$nulls":5},"Toll Free:"]
["Fax:",{"$nulls":5},"Contact:"]
[]
[]
["Name & Title of Person Authorized to Sign Offer",{"$nulls":5},"* Signature of Person Authorized to Sign Offer"]
[{"$nulls":6},"(Original Signature Required)"]
["* Failure to execute this Form binding the bidder/proposer's offer shall result in the bid/proposal being rejected as non-responsive."]
[]
["I certify that this offer is made without prior understanding, agreement, or connection, with any Corporation, firm or person submitting an offer for the same materials, supplies, or equipment, and is in all respects fair and without collusion or fraud.  I agree to abide by all conditions of this offer and certify that I am authorized to sign this offer for the Offeror and that the Offeror is in compliance with all requirements of the solicitation, including but not limited to certification requirements.  In submitting an offer to Escambia County Florida, the Offeror agrees that if the offer is accepted, the Offeror will convey, sell, assign or transfer to Escambia County Florida all rights title and interest in and to all causes of action it may now or hereafter acquire under the Anti-trust laws of the United States and the State of Florida for price fixing relating to the particular commodities or services purchase or acquired by Escambia County Florida.  At the County’s discretion, such assignment shall be made and become effective at the time the County tenders final payment to the Offeror."]
["BID FORM"]
[]
[]
[{"$nulls":4},"BASE BID:    $",{"$f":"'Unit Price List'!G32","v":{"v":0,"d":"0.00"}}]

{"sheet":"Unit Price List","index":1,"n_rows":32,"n_cols":7,"rows_kept":32,"merged":[[2,1,2,6],[31,3,31,5]]}
[null,"Muscogee Road Ph 4B Road Widening and Drainage Improvements"]
[null,"Bid Item No.","Bid Item Description","Quantity","Unit","Unit Price","Extension"]
[null,"Phase 4B (Station 223+43.64 - 250+50)"]
[null,1,"Mobilization",1,"LS",null,{"$f":"D4*F4","v":{"v":0,"d":"$0.00"}}]
[null,{"$f":"B4+1","v":2},"Prepare & Implement Maintenance of Traffic Plan (Must include Variable Massage Board, Plan, Layout, temporary stabilization, all earthwork related to MOT throughout the project, and all appurtenances for MOT).  This bid item is all inclusive of all items identified on the plans or as required to facilitate all aspects of maintenance of traffic.",1,"LS",null,{"$f":"D5*F5","v":{"v":0,"d":"$0.00"}}]
[null,{"$f":"B5+1","v":3},"Clearing and Grubbing (Including but not limited to Flagging Wetlands, Removal of Debris, Trees, Landscaping, Hardscaping, Fences, Curb & Gutter, Concrete, Asphalt, Saw Cutting Concrete & Asphalt, Inlet and Storm Pipe Removal, Guard Rails, Conc. Ditches, water mains, hydrants, striping, Etc) per Specification Section 2230. This bid item is all inclusive of items identified on the plans or as required to facilitate construction.",1,"LS",null,{"$f":"D6*F6","v":{"v":0,"d":"$0.00"}}]
[null,4,"Establish, quantify, and submit an approved erosion control plan prepared by a certified technician (Must Include Implementation of Plans, Installation and Replacement, NOI and NOT).",1,"LS",null,{"v":0,"d":"$0.00"}]
[null,5,"1\" Asphalt Milling",{"v":7456,"d":"7,456"},"SY",null,{"v":0,"d":"$0.00"}]
[null,6,"4\" FDOT Type SP 12.5 Asphalt (1st Course 2\" SP12.5, 2nd Course 2\" SP 12.5 W/PG- 76-22 Binder)",{"v":10877,"d":"10,877"},"SY",null,{"v":0,"d":"$0.00"}]
[null,7,"6” Graded Aggregate Base (or 4\" Asphalt Base) and 12\" Stabilized Subgrade",{"v":3421,"d":"3,421"},"SY",null,{"v":0,"d":"$0.00"}]
[null,8,"Earthwork, (Cut/Fill)",1,"LS",null,{"v":0,"d":"$0.00"}]
[null,9,"1.5\" SP 12.5 Asphalt Driveway",45,"SY",null,{"v":0,"d":"$0.00"}]
[null,10,"2\" SP 12.5 Asphalt Driveway",254,"SY",null,{"v":0,"d":"$0.00"}]
[null,11,"4\" Concrete Driveway w/4\" Stabilized Subgrade",93,"SY",null,{"v":0,"d":"$0.00"}]
[null,{"$f":"B14+1","v":12},"2\" SP 12.5 Asphalt w/PG 76-22 Binder, 8\" Graded Aggregate Base, and 12\" Stabilized Subgrade",834,"SY",null,{"v":0,"d":"$0.00"}]
[null,13,"Grass Ditch / Swale Grading ",780,"LF",null,{"v":0,"d":"$0.00"}]
[null,14,"Signing and Pavement Markings. Must Include Implementation of Plans, Approved Layout, installation of temporary and permanent striping, temporary and permanent RPM's, sign relocation/replacement, etc. ",1,"LS",null,{"v":0,"d":"$0.00"}]
[null,15,"18” RCP Pipe  (does not include length of pipe associated with MES)",71,"LF",null,{"v":0,"d":"$0.00"}]
[null,16,"18” Mitered End Section (Single Pipe) (includes length of pipe associated with MES per detail)",2,"EA",null,{"v":0,"d":"$0.00"}]
[null,17,"14\"x23\" ERCP Pipe   (does not include length of pipe associated with MES)",17,"LF",null,{"v":0,"d":"$0.00"}]
[null,18,"14\"x23” Mitered End Section (Single Pipe) (includes length of pipe associated with MES per detail)",2,"EA",null,{"v":0,"d":"$0.00"}]
[null,19,"Adjust Sewer Valve",1,"EA",null,{"v":0,"d":"$0.00"}]
[null,20,"Adjust Water Valve",4,"EA",null,{"v":0,"d":"$0.00"}]
[null,21,"Install Storm Structure @ Taylor St.",1,"EA",null,{"v":0,"d":"$0.00"}]
[null,22,"Install New Fire Hydrant, Valve Assembly, tap, and pipe",1,"EA",null,{"v":0,"d":"$0.00"}]
[null,23,"Remove and Replace Existing Mailbox with Approved Break-Away Mailbox with Front and Rear Door",15,"EA",null,{"v":0,"d":"$0.00"}]
[null,24,"6\" Water Line Adjustment (includes all fittings, pipe, reconnection of Taylor St. system, night work, notifications, etc).   ",1,"LS",null,{"v":0,"d":"$0.00"}]
[null,25,"Sod, Pinned (Must Match Existing Sod Type)",{"v":10000,"d":"10,000"},"SY",null,{"v":0,"d":"$0.00"}]
[null,26,"Waterproof Job Site Board",1,"EA",null,{"v":0,"d":"$0.00"}]
[null,27,"Dewatering - (well point, pumping, etc)",45,"DAY",null,{"v":0,"d":"$0.00"}]
[null,{"$f":"B30+1","v":28},"Remove and Replace Unsuitable Materials",{"v":1000,"d":"1,000"},"CY",null,{"v":0,"d":"$0.00"}]
[{"$nulls":3},"Total Bid",null,null,{"$f":"SUM(G4:G31)","v":{"v":0,"d":"$0.00"}}]